Workbook

Sheet Hoja1
M1: Medic y Odont | N1: Otros
M3: =+#REF! ->  | N3: =+#REF! -> 
G4: SIMULADOR ESTÁNDAR | M4: 2013-12-20 | N4: 2013-12-20
M5: 2014-01-10 | N5: 2014-01-10
M6: 2014-01-17 | N6: 2014-01-24
C8: Valor Matricula | D8: 10923100 | F8: =+IF(D8=0,"Por favor digite el valor matrícula (Sin Recargo Extraordinario)","") ->  | M8: 0
C9: Número de Cuotas | D9: 6 | F9: =+IF(AND(D9=5,Fecha_Vencimiento_Factura=N6),"Última fecha solo podrá financiar a 4 contados",IF(D9=0,"Por favor digite el número de cuotas","")) -> 
B10: * | C10: Fecha Vencimiento Factura | D10: 2020-06-02 | F10: =+IF(D10="","Por favor seleccione la fecha en la cual desea iniciar su plan de pagos",IF(D10< TODAY(),"Fecha no válida, por favor verifique","")) -> 
C11: Tasa de Interes de Financiación | D11: 0.01 | E11: =+(1%*12)/365 -> 0.0003287671233
C12: Valor Matricula Extraordinaria | D12: 0
D15: =IF(D8="","","PERIODO") -> PERIODO | F15: =IF(D8="","","MATRICULA") -> MATRICULA | G15: =IF(D8="","","INTERES DE FINANCIACIÓN/ EXTRAORDINARIA") -> INTERES DE FINANCIACIÓN/ EXTRAORDINARIA | H15: =IF(D8="","","SALDO CAPITAL") -> SALDO CAPITAL | I15: =IF(D8="","","PAGO MENSUAL") -> PAGO MENSUAL | J15: =IF(D8="","","FECHA DE PAGO") -> FECHA DE PAGO
D16: =IF(F9<>"","",IF(F10<>"","",IF(D8<>"",1,""))) -> 1 | F16: =+IF(F9<>"","",IF(F10<>"","",IF($D$9=2,$D$8*50%,IF($D$9=3,$D$8*40%,IF($D$9=4,$D$8*25%,IF($D$9=5,$D$8*20%,IF($D$9=6,D8*20%,0))))))) -> 2184620 | G16: =+IF(F10<>"","",IF(D12="","",D12)) -> 0 | H16: =IF(F9<>"","",IF(F10<>"","",IF(F10<>"","",+D8-F16))) -> 8738480 | I16: =IFERROR(IF(F10<>"","",+F16+D12),"") -> 2184620 | J16: =IF(F9<>"","",IF(F10<>"","",IF(D8<>"",D10,""))) -> 2020-06-02
D17: =IF(D16<D9,D16+1,"") -> 2 | F17: =IF(F10<>"","",IF(D17<>"",IF($D$9=2,$D$8*50%,IF($D$9=3,$D$8*30%,IF($D$9=4,$D$8*25%,IF($D$9=5,$D$8*20%,IF($D$9=6,$D$8*16%,0))))),"")) -> 1747696 | G17: =IF(F10<>"","",IF(D17<>"",H16*$E$11*K17,"")) -> 86187.74795 | H17: =IF(F10<>"","",IF(D17<>"",+H16-F17,"")) -> 6990784 | I17: =IF(F10<>"","",IF(D17<>"",F17+G17,"")) -> 1833883.748 | J17: =IF(F10<>"","",IF(D17<>"",EDATE(J16,1),"")) -> 2020-07-02 | K17: =+J17-J16 -> 30
D18: =IF(D17<$D$9,D17+1,"") -> 3 | F18: =IF(F10<>"","",IF(D18<>"",IF($D$9=2,$D$8*50%,IF($D$9=3,$D$8*30%,IF($D$9=4,$D$8*25%,IF($D$9=5,$D$8*20%,IF($D$9=6,$D$8*16%,0))))),"")) -> 1747696 | G18: =IF(F10<>"","",IF(D18<>"",H17*$E$11*K18,"")) -> 71248.5383 | H18: =IF(F10<>"","",IF(D18<>"",+H17-F18,"")) -> 5243088 | I18: =IF(F10<>"","",IF(D18<>"",F18+G18,"")) -> 1818944.538 | J18: =IF(F10<>"","",IF(D18<>"",EDATE(J17,1),"")) -> 2020-08-02 | K18: =+J18-J17 -> 31
D19: =IF(D18<$D$9,D18+1,"") -> 4 | F19: =IF(F10<>"","",IF(D19<>"",IF($D$9=2,$D$8*50%,IF($D$9=3,$D$8*30%,IF($D$9=4,$D$8*25%,IF($D$9=5,$D$8*20%,IF($D$9=6,$D$8*16%,0))))),"")) -> 1747696 | G19: =IF(F10<>"","",IF(D19<>"",H18*$E$11*K19,"")) -> 53436.40373 | H19: =IF(F10<>"","",IF(D19<>"",+H18-F19,"")) -> 3495392 | I19: =IF(F10<>"","",IF(D19<>"",F19+G19,"")) -> 1801132.404 | J19: =IF(F10<>"","",IF(D19<>"",EDATE(J18,1),"")) -> 2020-09-02 | K19: =+J19-J18 -> 31
D20: =IF(D19<$D$9,D19+1,"") -> 5 | F20: =IF(F10<>"","",IF(D20<>"",IF($D$9=2,$D$8*50%,IF($D$9=3,$D$8*30%,IF($D$9=4,$D$8*30%,IF($D$9=5,$D$8*20%,IF($D$9=6,$D$8*16%,0))))),"")) -> 1747696 | G20: =IF(F10<>"","",IF(D20<>"",H19*$E$11*K20,"")) -> 34475.09918 | H20: =IF(F10<>"","",IF(D20<>"",H19-F20,"")) -> 1747696 | I20: =IF(F10<>"","",IF(D20<>"",F20+G20,"")) -> 1782171.099 | J20: =IF(F10<>"","",IF(D20<>"",EDATE(J19,1),"")) -> 2020-10-02 | K20: =+J20-J19 -> 30
D21: =IF(D20<$D$9,D20+1,"") -> 6 | F21: =IF(F11<>"","",IF(D21<>"",IF($D$9=2,$D$8*50%,IF($D$9=3,$D$8*30%,IF($D$9=4,$D$8*30%,IF($D$9=5,$D$8*20%,IF($D$9=6,$D$8*16%,0))))),"")) -> 1747696 | G21: =IF(F11<>"","",IF(D21<>"",H20*$E$11*K21,"")) -> 17812.13458 | H21: =IF(F11<>"","",IF(D21<>"",H20-F21,"")) -> 0 | I21: =IF(F11<>"","",IF(D21<>"",F21+G21,"")) -> 1765508.135 | J21: =IF(F11<>"","",IF(D21<>"",EDATE(J20,1),"")) -> 2020-11-02 | K21: =+J21-J20 -> 31
D22: =IF(D23<$D$9,D23+1,"") -> 
D23: TOTAL | F23: =SUM(F16:F21) -> 10923100 | G23: =SUM(G16:G21) -> 263159.9237
G26: SIMULADOR CUOTA VARIABLE
C29: Valor Matricula | D29: 1000000 | F29: =+IF(D29=0,"Por favor digite el valor matrícula (Sin Recargo Extraordinario)","") -> 
C30: Valor Deseado 1ra Cuota | D30: 200000 | F30: =+IF(D30<(D29*20%),"Recuerde que el valor no puede ser Inferior al 20% de la matrícula, El monto debe ser mayor a "&DOLLAR((D29*20%)),"") -> 
C31: Número de Cuotas | D31: 5 | F31: =+IF(AND(D31=5,D33=N6),"Última fecha solo podrá financiar a 4 contados",IF(D31=0,"Por favor digite el número de cuotas","")) -> 
C32: Tasa de Interes de Financiación | D32: 0.01 | E32: =+(1%*12)/365 -> 0.0003287671233
C33: Fecha Vencimiento Factura | D33: 2020-06-02 | F33: =+IF(D33="","Por favor seleccione la fecha en la cual desea iniciar su plan de pagos",IF(D33< TODAY(),"Fecha no válida, por favor verifique","")) -> 
C34: Valor Matricula Extraordinaria | D34: 0
D36: =IF(D29="","","PERIODO") -> PERIODO | F36: =IF(D29="","","MATRICULA") -> MATRICULA | G36: =IF(D29="","","INTERES DE FINANCIACIÓN/ EXTRAORDINARIA") -> INTERES DE FINANCIACIÓN/ EXTRAORDINARIA | H36: =IF(D29="","","SALDO CAPITAL") -> SALDO CAPITAL | I36: =IF(D29="","","PAGO MENSUAL") -> PAGO MENSUAL | J36: =IF(D29="","","FECHA DE PAGO") -> FECHA DE PAGO
D37: =IF(F31="",IF(F33<>"","",IF(D29<>"",1,"")),"") -> 1 | F37: =+IF(F31="",IF(F33<>"","",IF($D$31=2,IF(D30>=D29*20%,D30-G37,"Menor al 20%"),IF($D$31=3,IF(D30>=D29*20%,D30-G37,"Menor al 20%"),IF($D$31=4,IF(D30>=D29*20%,D30-G37,"Menor al 20%"),IF($D$31=5,IF(D30>=D29*20%,D30-G37,"Menor al 20%"),IF($D$31=6,IF(D30>=D29*20%,D30-G37,"Menor al 20%"),0)))))),"") -> 200000 | G37: =+IF(F31<>"","",IF(D34="","",D34)) -> 0 | H37: =+IFERROR(IF(F31="",IF(F33<>"","",D29-F37),""),"") -> 800000 | I37: =IFERROR(IF(F37="",D29+G37,F37+G37),"") -> 200000 | J37: =IF(F31="",IF(F33<>"","",IF(D29<>"",D33,"")),"") -> 2020-06-02
D38: =IF(D37<$D$31,IF(F37="Menor al 20%","",IF(F37="Menor al 20%","",IF(F37="Menor al 20%","",IF(F37="Menor al 20%","",D37+1)))),"") -> 2 | F38: =IF(F33<>"","",IF(D38<>"",IF($D$31=2,H37,IF($D$31=3,H37/2,IF($D$31=4,H37/3,IF($D$31=5,H37/4,IF($D$31=6,H37/5,0))))),"")) -> 200000 | G38: =IF(F33<>"","",IF(D38<>"",H37*E32*K38,"")) -> 7890.410959 | H38: =IF(F33<>"","",IF(D38<>"",+H37-F38,"")) -> 600000 | I38: =IF(F33<>"","",IF(D38<>"",F38+G38,"")) -> 207890.411 | J38: =IF(F33<>"","",IF(D38<>"",EDATE(J37,1),"")) -> 2020-07-02 | K38: =+J38-J37 -> 30
D39: =IF(D38<$D$31,D38+1,"") -> 3 | F39: =IF(D39<>"",IF($D$31=2,$D$8*50%,IF($D$31=3,F38,IF($D$31=4,F38,IF($D$31=5,F38,IF($D$31=6,H37/5,0))))),"") -> 200000 | G39: =IF(F33<>"","",IF(D39<>"",H38*E32*K39,"")) -> 6115.068493 | H39: =IF(F33<>"","",IF(D39<>"",+H38-F39,"")) -> 400000 | I39: =IF(F33<>"","",IF(D39<>"",F39+G39,"")) -> 206115.0685 | J39: =IF(F33<>"","",IF(D39<>"",EDATE(J38,1),"")) -> 2020-08-02 | K39: =+J39-J38 -> 31
D40: =IF(D39<$D$31,D39+1,"") -> 4 | F40: =IF(D40<>"",IF($D$31=2,$D$8*50%,IF($D$31=3,$D$8*30%,IF($D$31=4,F39,IF($D$31=5,F39,IF($D$31=6,H37/5,0))))),"") -> 200000 | G40: =IF(F33<>"","",IF(D40<>"",H39*E32*K40,"")) -> 4076.712329 | H40: =IF(F33<>"","",IF(D40<>"",+H39-F40,"")) -> 200000 | I40: =IF(F33<>"","",IF(D40<>"",F40+G40,"")) -> 204076.7123 | J40: =IF(F33<>"","",IF(D40<>"",EDATE(J39,1),"")) -> 2020-09-02 | K40: =+J40-J39 -> 31
D41: =IF(D40<$D$31,D40+1,"") -> 5 | F41: =IF(D41<>"",IF($D$31=2,$D$8*50%,IF($D$31=3,$D$8*30%,IF($D$31=4,$D$8*30%,IF($D$31=5,F40,IF($D$31=6,H37/5,0))))),"") -> 200000 | G41: =IF(F33<>"","",IF(D41<>"",H40*E32*K41,"")) -> 1972.60274 | H41: =IF(F33<>"","",IF(D41<>"",H40-F41,"")) -> 0 | I41: =IF(F33<>"","",IF(D41<>"",F41+G41,"")) -> 201972.6027 | J41: =IF(F33<>"","",IF(D41<>"",EDATE(J40,1),"")) -> 2020-10-02 | K41: =+J41-J40 -> 30
D42: =IF(D41<$D$31,D41+1,"") ->  | F42: =IF(D42<>"",IF($D$31=2,$D$8*50%,IF($D$31=3,$D$8*30%,IF($D$31=4,$D$8*30%,IF($D$31=5,F41,IF($D$31=6,F41,0))))),"") ->  | G42: =IF(F34<>"","",IF(D42<>"",H41*E32*K42,"")) ->  | H42: =IF(F34<>"","",IF(D42<>"",H41-F42,"")) ->  | I42: =IF(F34<>"","",IF(D42<>"",F42+G42,"")) ->  | J42: =IF(F34<>"","",IF(D42<>"",EDATE(J41,1),"")) ->  | K42: =+J42-J41 -> 
D43: =IF(D44<$D$9,D44+1,"") -> 
D44: TOTAL | F44: =SUM(F37:F42) -> 1000000 | G44: =SUM(G37:G42) -> 20054.79452
C191: *Recuerde "Fecha de vencimiento Factura" debe ser la misma fecha de su orden de pago financiera. Si desea realizar su crédito sobre segunda o tercera fecha, solo podrá acceder a un plan de pagos hasta en 5 ó 4 cuotas respectivamente.
